bitfinex-derivatives/quotes_SOLF0:USTF0_20250928
["timestamp","ask_amount","ask_price","bid_price","bid_amount"]
[1759095200549,3.42678831,206.79,206.73,7.51]
[1759095200748,7.73,206.8,206.73,7.51]
[1759095201047,3.42678831,206.79,206.73,7.51]
[1759095201251,7.73,206.79,206.73,7.51]
[1759095202058,12.0808,206.79,206.73,7.51]
[1759095202249,12.0808,206.79,206.7,11.8624]
[1759095202450,11.15185504,206.78,206.7,7.51]
[1759095202756,7.73,206.76,206.7,7.51]
[1759095203057,3.42185504,206.75,206.7,7.51]
[1759095203254,7.73,206.78,206.7,7.51]
[1759095203453,7.73,206.76,206.7,7.51]
[1759095203654,7.56,206.74,206.68,0.84180989]
[1759095203857,7.56,206.74,206.67,92.03]
[1759095204854,7.56,206.74,206.68,8.03]
[1759095205457,1.67611024,206.76,206.64,9.70611024]
[1759095205660,7.56,206.74,206.65,8.03]
[1759095206264,11.9118,206.74,206.65,8.03]
[1759095208162,7.56,206.74,206.65,8.03]
[1759095208862,7.56,206.72,206.6,8.03]
[1759095209057,7.56,206.7,206.6,8.03]
[1759095209564,4.3529,206.69,206.6,12.3845]
[1759095209760,4.3529,206.69,206.61,8.03]
[1759095209956,7.56,206.7,206.61,8.03]
[1759095210257,7.56,206.73,206.62,67.7316]
[1759095210463,7.56,206.73,206.64,8.03]
[1759095211065,11.9119,206.73,206.65,4.3534]
[1759095212465,11.9119,206.73,206.64,8.03]
[1759095214368,7.56,206.73,206.64,8.03]
[1759095215670,11.9124,206.71,206.64,8.03]
[1759095219270,7.56,206.68,206.6,14.76028314]
[1759095219571,7.56,206.68,206.59,8.87215621]
[1759095220166,7.56,206.68,206.6,4.3544]
[1759095220771,7.56,206.72,206.6,14.34809824]
[1759095220973,7.56,206.72,206.64,8.03]
[1759095222667,7.56,206.72,206.64,12.3835]
[1759095225374,4.3519,206.73,206.64,12.3835]
[1759095225580,7.56,206.72,206.64,12.3835]
[1759095227480,7.56,206.77,206.68,8.03]
[1759095227778,7.56,206.73,206.62,8.03]
[1759095227981,11.912,206.73,206.64,12.3836]
[1759095228177,7.56,206.72,206.64,8.03]
[1759095229076,4.3523,206.71,206.64,8.03]
[1759095231682,7.56,206.7,206.64,8.03]
[1759095237183,6.97265235,206.74,206.64,4.3534]
[1759095237385,11.04774707,206.73,206.65,7.93]
[1759095237581,7.64,206.73,206.65,7.93]
[1759095238580,7.64,206.73,206.65,4.3532]
[1759095238781,7.64,206.73,206.66,7.93]
[1759095239289,7.64,206.73,206.66,4.353]
[1759095239481,7.64,206.73,206.67,7.93]
[1759095243193,3.41346392,206.72,206.66,4.353]
[1759095243492,7.64,206.75,206.67,7.93]
[1759095243694,3.41404762,206.74,206.67,7.93]
[1759095243988,3.41404762,206.73,206.67,7.93]
[1759095244188,3.41404762,206.72,206.67,7.93]
[1759095244394,7.64,206.73,206.67,7.93]
[1759095244590,7.64,206.73,206.66,4.353]
[1759095244591,3.41549203,206.72,206.66,4.353]
[1759095244891,7.64,206.75,206.68,4.3528]
[1759095245093,3.41564212,206.74,206.68,4.3528]
[1759095245389,11.05564212,206.73,206.68,4.3528]
[1759095245593,3.41564212,206.72,206.69,7.93]
[1759095245793,7.64,206.73,206.69,7.93]
[1759095245988,3.41728882,206.72,206.69,7.93]
[1759095246197,3.41876749,206.71,206.69,7.93]
[1759095246389,7.64,206.75,206.69,7.93]
[1759095246586,3.41885822,206.74,206.68,4.3528]
[1759095246782,4.3511,206.76,206.69,7.93]
[1759095246783,7.64,206.72,206.69,7.93]
[1759095246984,3.41885822,206.71,206.69,7.93]
[1759095247188,7.64,206.72,206.69,7.93]
[1759095247493,3.42113863,206.71,206.69,7.93]
[1759095247695,7.64,206.72,206.69,7.93]
[1759095247997,3.42119725,206.71,206.69,7.93]
[1759095248182,7.64,206.72,206.69,7.93]
[1759095248388,3.42190696,206.71,206.69,7.93]
[1759095248690,7.64,206.72,206.69,7.93]
[1759095248888,3.42194933,206.71,206.69,7.93]
[1759095249187,7.64,206.75,206.69,7.93]
[1759095249392,3.42220337,206.74,206.69,7.93]
[1759095249585,7.64,206.72,206.69,7.93]
[1759095249790,3.42220337,206.71,206.69,7.93]
[1759095249989,7.64,206.72,206.69,7.93]
[1759095250189,3.42280646,206.71,206.69,7.93]
[1759095250390,3.42280646,206.7,206.69,7.93]
[1759095255388,3.42280646,206.7,206.62,4.3539]
[1759095255389,11.29280646,206.7,206.62,4.3539]
[1759095255594,3.42280646,206.69,206.63,7.43]
[1759095255798,7.87,206.7,206.63,7.43]
[1759095255998,3.42191509,206.69,206.63,7.43]
[1759095256191,7.87,206.7,206.63,11.7837]
[1759095256396,3.42197638,206.69,206.64,7.43]
[1759095256700,7.87,206.7,206.64,7.43]
[1759095257001,3.42197637,206.69,206.63,4.3537]
[1759095257193,7.87,206.72,206.64,7.43]
[1759095257394,3.4222072,206.71,206.64,7.43]
[1759095257595,3.4222072,206.7,206.64,7.43]
[1759095257795,3.4222072,206.69,206.63,4.3537]
[1759095257994,4.3519,206.73,206.63,4.3537]
[1759095257995,7.87,206.7,206.64,7.43]
[1759095258195,3.42220662,206.69,206.64,7.43]
[1759095258398,4.3519,206.73,206.64,7.43]
[1759095258399,7.87,206.72,206.64,7.43]
[1759095258599,3.42221067,206.71,206.64,7.43]
[1759095258797,3.42221067,206.7,206.64,11.7835]
[1759095258997,3.42221067,206.69,206.65,7.43]
[1759095259201,7.87,206.72,206.65,7.43]
[1759095259402,3.42234659,206.71,206.65,7.43]
[1759095259598,3.42234659,206.7,206.63,67.7272]
[1759095259804,3.42234659,206.69,206.64,7.43]
[1759095259999,12.2214,206.75,206.64,7.43]
[1759095260199,7.87,206.73,206.64,7.43]
[1759095260506,3.42273953,206.72,206.64,7.43]
[1759095260702,3.42273953,206.71,206.67,7.43]
[1759095260901,3.42273953,206.7,206.66,4.353]
[1759095261096,3.42273953,206.69,206.67,7.43]
[1759095261301,7.87,206.73,206.67,7.43]
[1759095261506,7.87,206.71,206.66,4.353]
[1759095261709,3.42339602,206.7,206.66,4.353]
[1759095262006,3.42339602,206.69,206.66,4.353]
[1759095262202,7.87,206.71,206.67,7.43]
[1759095262400,3.42335972,206.7,206.67,7.43]
[1759095262603,3.42335972,206.69,206.66,4.353]
[1759095262802,7.87,206.71,206.67,7.43]
[1759095263107,3.42338933,206.7,206.67,7.43]
[1759095263300,3.42338933,206.69,206.66,4.353]
[1759095263504,7.87,206.71,206.66,4.353]
[1759095263703,3.42338445,206.7,206.67,7.78]
[1759095263901,3.42338445,206.69,206.67,7.78]
[1759095264106,7.87,206.71,206.67,7.78]
[1759095264308,3.423348,206.7,206.66,4.353]
[1759095264508,3.423348,206.69,206.67,7.78]
[1759095264700,7.87,206.71,206.66,4.353]
[1759095264906,3.42338128,206.7,206.67,7.78]
[1759095265108,3.42338128,206.69,206.66,4.353]
[1759095265408,7.8,206.74,206.66,12.133]
[1759095265598,7.8,206.72,206.66,12.133]
[1759095265802,7.8,206.7,206.66,4.353]
[1759095266003,3.42378316,206.69,206.66,4.353]
[1759095266203,7.8,206.7,206.66,4.353]
[1759095266408,3.42375096,206.69,206.66,4.353]
[1759095266610,7.8,206.7,206.66,4.353]
[1759095266806,3.42377728,206.69,206.67,7.78]
[1759095267008,7.8,206.7,206.67,7.78]
[1759095267203,3.42383997,206.69,206.67,7.78]
[1759095267403,7.8,206.7,206.67,7.78]
[1759095267606,3.4238642,206.69,206.66,4.353]
[1759095267799,7.8,206.7,206.66,4.353]
[1759095268010,3.4238642,206.69,206.66,4.353]
[1759095268207,7.8,206.7,206.67,7.78]
[1759095268405,3.42391362,206.69,206.67,7.78]
[1759095268605,7.8,206.7,206.67,7.78]
[1759095268898,3.42420296,206.69,206.66,4.353]
[1759095269109,7.8,206.7,206.66,4.353]
[1759095269303,3.42417844,206.69,206.67,7.78]
[1759095269503,7.8,206.7,206.67,7.78]
[1759095269706,3.4242014,206.69,206.67,7.78]
[1759095269904,7.8,206.7,206.67,7.78]
[1759095270109,3.4242014,206.69,206.67,7.78]
[1759095270306,7.8,206.7,206.67,7.78]
[1759095270615,3.42419409,206.69,206.67,7.78]
[1759095270806,7.8,206.7,206.67,7.78]
[1759095271008,3.42419409,206.69,206.67,7.78]
[1759095271207,7.8,206.7,206.67,7.78]
[1759095271411,3.42419384,206.69,206.67,7.78]
[1759095271613,7.8,206.7,206.67,7.78]
[1759095271812,3.42419384,206.69,206.67,7.78]
[1759095272016,7.8,206.7,206.67,7.78]
[1759095272215,3.42417017,206.69,206.66,4.353]
[1759095272411,7.8,206.7,206.67,7.78]
[1759095272713,3.42419358,206.69,206.67,7.78]
[1759095272914,7.8,206.7,206.67,7.78]
[1759095273116,3.42419358,206.69,206.67,7.78]
[1759095273313,7.8,206.7,206.67,7.78]
[1759095273515,3.42419568,206.69,206.67,7.78]
[1759095273713,7.8,206.7,206.67,7.78]
[1759095273909,7.8,206.68,206.63,4.3537]
[1759095274116,1.67756847,206.7,206.64,7.78]
[1759095274416,11.22411551,206.69,206.63,12.1337]
[1759095274620,11.22411551,206.68,206.63,4.3537]
[1759095274815,7.8,206.68,206.63,4.3537]
[1759095275425,7.8,206.68,206.64,7.78]
[1759095275621,7.8,206.68,206.63,4.3537]
[1759095275817,7.8,206.68,206.64,7.78]
[1759095276018,7.8,206.68,206.65,7.78]
[1759095277021,7.8,206.68,206.64,4.3534]
[1759095277222,7.8,206.68,206.65,7.78]
[1759095277417,7.8,206.69,206.66,4.3532]
[1759095278022,3.423893,206.68,206.62,7.78]
[1759095278223,7.8,206.69,206.63,4.3537]
[1759095278422,7.8,206.67,206.64,7.78]
[1759095278720,1.67756847,206.7,206.64,7.78]
[1759095278917,3.42386947,206.69,206.64,7.78]
[1759095279118,7.8,206.67,206.64,7.78]
[1759095281525,7.8,206.69,206.64,7.78]
[1759095281825,7.8,206.67,206.64,7.78]
[1759095284626,7.8,206.67,206.64,12.1336]
[1759095286124,1.67756847,206.7,206.64,12.1336]
[1759095286325,3.41686146,206.69,206.64,12.1336]
[1759095286526,7.8,206.67,206.64,12.1336]
[1759095288028,7.8,206.67,206.64,4.3536]
[1759095288330,7.8,206.67,206.65,7.78]
[1759095296836,7.8,206.67,206.64,4.3536]
[1759095297238,7.66,206.73,206.65,7.3]
[1759095297435,3.4210345,206.72,206.65,7.3]
[1759095297633,3.4210345,206.71,206.65,7.3]
[1759095297836,3.4210345,206.7,206.65,7.3]
[1759095298038,9.33756847,206.73,206.65,7.3]
[1759095298339,3.42111748,206.72,206.65,7.3]
[1759095298537,3.42111748,206.71,206.67,4.353]
[1759095298847,9.33756847,206.73,206.67,11.653]
[1759095299038,7.66,206.71,206.67,4.353]
[1759095299233,7.66,206.71,206.68,7.3]
[1759095299841,7.66,206.71,206.67,4.353]
[1759095300435,7.66,206.71,206.68,7.3]
[1759095300635,7.66,206.71,206.67,4.353]
[1759095300834,7.66,206.71,206.68,7.3]
[1759095301041,7.66,206.72,206.68,7.3]
[1759095301241,7.66,206.7,206.68,7.3]
[1759095304946,1.67756847,206.73,206.68,7.3]
[1759095305152,3.42020656,206.72,206.68,7.3]
[1759095305359,7.66,206.7,206.68,7.3]
[1759095306649,1.67756847,206.73,206.68,7.3]
[1759095306849,7.66,206.71,206.66,4.3533]
[1759095307050,3.41956956,206.7,206.66,4.3533]
[1759095307346,7.66,206.71,206.67,7.3]
[1759095307552,3.41960605,206.7,206.67,7.3]
[1759095307852,12.0109,206.78,206.68,4.3527]
[1759095308054,9.33756847,206.75,206.69,7.3]
[1759095308251,3.41961577,206.74,206.68,4.3527]
[1759095308454,3.41961577,206.73,206.68,4.3527]
[1759095308644,11.07961577,206.72,206.69,7.3]
[1759095308850,3.41961577,206.71,206.65,4.3533]
[1759095309051,9.33756847,206.72,206.66,7.3]
[1759095309248,3.4194323,206.71,206.65,4.3533]
[1759095309455,9.33756847,206.72,206.66,7.3]
[1759095309653,11.07926791,206.71,206.66,7.3]
[1759095309855,7.66,206.71,206.65,4.3533]
[1759095310152,1.67756847,206.72,206.65,4.3533]
[1759095310352,3.41916513,206.71,206.65,4.3533]
[1759095310556,7.66,206.71,206.66,7.3]
[1759095310751,9.33756847,206.72,206.66,7.3]
[1759095310947,3.41911571,206.71,206.66,7.3]
[1759095311149,9.33756847,206.72,206.66,7.3]
[1759095311352,7.38,206.7,206.65,4.3533]
[1759095311552,7.38,206.7,206.66,7.82]
[1759095312053,7.38,206.7,206.65,4.3533]
[1759095312250,7.38,206.7,206.66,7.82]
[1759095312655,7.38,206.7,206.65,4.3533]
[1759095312849,1.67756847,206.72,206.65,4.3533]
[1759095313055,3.41633514,206.71,206.66,7.82]
[1759095313256,9.05756847,206.72,206.66,7.82]
[1759095313551,3.41620145,206.71,206.67,4.353]
[1759095313756,7.38,206.72,206.67,4.353]
[1759095314058,3.41588497,206.71,206.67,4.353]
[1759095314246,1.67756847,206.75,206.67,4.353]
[1759095314553,7.38,206.73,206.67,12.173]
[1759095314757,7.38,206.71,206.68,7.82]
[1759095316158,1.67756847,206.75,206.68,7.82]
[1759095316359,3.41487459,206.74,206.68,7.82]
[1759095316560,3.41487459,206.73,206.68,7.82]
[1759095316851,3.41487459,206.72,206.68,7.82]
[1759095317057,3.41487459,206.71,206.68,7.82]
[1759095317257,7.38,206.7,206.68,7.82]
[1759095319458,7.38,206.74,206.65,12.1734]
[1759095319761,3.4144227,206.73,206.68,7.82]
[1759095319961,7.38,206.71,206.68,7.82]
[1759095320557,7.38,206.74,206.68,7.82]
[1759095320757,7.38,206.72,206.68,7.82]
[1759095320960,7.38,206.7,206.68,7.82]
[1759095321263,7.38,206.74,206.67,4.353]
[1759095321563,3.41450843,206.73,206.67,4.353]
[1759095321763,3.41450843,206.72,206.67,12.173]
[1759095322063,7.38,206.7,206.67,12.173]
[1759095322461,7.38,206.74,206.67,12.173]
[1759095322767,1.67756847,206.75,206.67,4.353]
[1759095322768,7.38,206.72,206.67,4.353]
[1759095323064,7.38,206.7,206.68,7.82]
[1759095323265,1.67756847,206.75,206.68,7.82]
[1759095323458,7.38,206.73,206.68,7.82]
[1759095323655,11.35453949,206.72,206.67,4.353]
[1759095323860,3.41453949,206.71,206.67,4.353]
[1759095324062,7.94,206.72,206.67,4.353]
[1759095324361,3.41453545,206.71,206.67,4.353]
[1759095324561,7.94,206.72,206.68,7.92]
[1759095324867,3.41456956,206.71,206.67,4.353]
[1759095325064,7.94,206.72,206.68,7.92]
[1759095325264,3.41457418,206.71,206.67,4.353]
[1759095325459,7.94,206.72,206.68,7.92]
[1759095325673,3.41462319,206.71,206.67,4.353]
[1759095325966,7.94,206.72,206.68,7.92]
[1759095326163,3.41462077,206.71,206.68,7.92]
[1759095326363,7.94,206.72,206.67,4.353]
[1759095326562,3.41468418,206.71,206.68,7.92]
[1759095326764,3.41468418,206.71,206.67,4.353]
[1759095326765,7.94,206.72,206.67,4.353]
[1759095326962,3.41468418,206.71,206.68,7.92]
[1759095327166,7.94,206.72,206.68,7.92]
[1759095327366,3.41601732,206.71,206.67,4.353]
[1759095327568,7.94,206.72,206.67,4.353]
[1759095327768,3.41609465,206.71,206.68,7.92]
[1759095327968,1.67756847,206.75,206.67,4.353]
[1759095328169,11.35623895,206.74,206.68,7.92]
[1759095328366,7.94,206.72,206.67,4.353]
[1759095328566,3.41623895,206.71,206.68,7.92]
[1759095328768,7.94,206.72,206.68,7.92]
[1759095328964,3.41633317,206.71,206.67,4.353]
[1759095329172,7.94,206.72,206.68,7.92]
[1759095329369,3.41633075,206.71,206.68,7.92]
[1759095329570,7.94,206.72,206.67,4.353]
[1759095329769,3.41643772,206.71,206.67,4.353]
[1759095330073,7.94,206.72,206.67,4.353]
[1759095330272,3.41643772,206.71,206.67,4.353]
[1759095330572,7.94,206.72,206.68,7.92]
[1759095330773,3.41559404,206.71,206.67,4.353]
[1759095330970,7.94,206.75,206.67,12.273]
[1759095331174,7.94,206.73,206.67,12.273]
[1759095331374,11.35484376,206.72,206.67,4.353]
[1759095331574,3.41484376,206.71,206.68,7.92]
[1759095331770,7.94,206.72,206.68,7.92]
[1759095331970,3.41522362,206.71,206.68,7.92]
[1759095332171,7.94,206.72,206.68,7.92]
[1759095332374,3.41526305,206.71,206.67,4.353]
[1759095332569,7.94,206.72,206.68,7.92]
[1759095332763,3.41538194,206.71,206.67,4.353]
[1759095332973,7.94,206.72,206.67,4.353]
[1759095333166,3.41538194,206.71,206.67,4.353]
[1759095333371,7.94,206.72,206.67,4.353]
[1759095333572,3.41555931,206.71,206.68,7.92]
[1759095333868,7.94,206.75,206.68,7.92]
[1759095334068,3.41555931,206.74,206.67,4.353]
[1759095334266,7.94,206.72,206.67,4.353]
[1759095334469,3.41555931,206.71,206.67,4.353]
[1759095334671,7.94,206.72,206.67,4.353]
[1759095334868,3.41606252,206.71,206.67,4.353]
[1759095335069,7.94,206.75,206.68,7.92]
[1759095335269,3.41618211,206.74,206.67,4.353]
[1759095335570,7.94,206.72,206.67,4.353]
[1759095335771,7.94,206.74,206.7,12.2724]
[1759095336075,3.41794343,206.73,206.68,7.92]
[1759095336266,7.94,206.78,206.68,7.92]
[1759095336465,3.41752989,206.77,206.68,7.92]
[1759095336667,3.41752989,206.76,206.71,4.352]
[1759095336877,11.35752989,206.75,206.72,7.92]
[1759095337074,3.41752989,206.74,206.72,7.92]
[1759095337279,7.94,206.75,206.72,7.92]
[1759095337581,7.94,206.75,206.73,7.92]
[1759095337877,7.94,206.8,206.73,7.92]
[1759095338073,3.41729183,206.79,206.72,4.3518]
[1759095338376,11.35729183,206.78,206.72,12.2718]
[1759095338574,7.94,206.76,206.73,7.92]
[1759095338779,3.41729183,206.75,206.73,7.92]
[1759095338979,7.94,206.76,206.73,7.92]
[1759095339185,3.41679915,206.75,206.73,7.92]
[1759095339477,7.94,206.76,206.73,7.92]
[1759095339683,3.41642498,206.75,206.73,7.92]
[1759095339882,7.94,206.76,206.73,7.92]
[1759095340085,3.4164274,206.75,206.73,7.92]
[1759095340275,7.94,206.76,206.73,7.92]
[1759095340476,3.41614901,206.75,206.72,4.3518]
[1759095340677,7.94,206.76,206.72,4.3518]
[1759095340877,3.41615144,206.75,206.72,4.3518]
[1759095341184,7.94,206.76,206.72,4.3518]
[1759095341378,3.41742656,206.75,206.73,7.92]
[1759095341570,7.94,206.76,206.72,4.3518]
[1759095341776,3.41754618,206.75,206.73,7.92]
[1759095342078,7.94,206.76,206.72,4.3518]
[1759095342282,3.41769045,206.75,206.73,7.92]
[1759095342579,7.94,206.76,206.73,7.92]
[1759095342775,3.41806706,206.75,206.73,7.92]
[1759095342981,7.94,206.76,206.72,4.3518]
[1759095343182,7.94,206.76,206.73,7.92]
[1759095343975,7.94,206.76,206.74,7.92]
[1759095345089,0.45941959,206.82,206.73,4.3516]
[1759095345290,11.35646892,206.81,206.74,7.92]
[1759095345486,3.41646892,206.8,206.74,7.92]
[1759095345687,11.35646892,206.79,206.74,7.92]
[1759095345986,7.94,206.79,206.74,7.92]
[1759095346186,7.94,206.81,206.74,7.92]
[1759095346388,7.94,206.79,206.74,7.92]
[1759095346589,7.94,206.81,206.74,7.92]
[1759095346793,3.41465094,206.8,206.74,7.92]
[1759095346997,0.45941959,206.82,206.73,12.2716]
[1759095346998,11.35465094,206.79,206.73,12.2716]
[1759095347295,7.94,206.79,206.73,12.2716]
[1759095347489,12.2897,206.83,206.75,7.92]
[1759095347692,7.94,206.81,206.75,7.92]
[1759095347896,3.41400401,206.8,206.74,4.3514]
[1759095348094,7.94,206.82,206.75,7.92]
[1759095348392,3.41400764,206.81,206.75,7.92]
[1759095348598,7.94,206.82,206.75,7.92]
[1759095348894,3.41281196,206.81,206.75,7.92]
[1759095349095,7.94,206.82,206.75,7.92]
[1759095349398,3.41281438,206.81,206.75,7.92]
[1759095349598,7.94,206.82,206.75,7.92]
[1759095349799,3.41192364,206.81,206.75,7.92]
[1759095350101,7.94,206.82,206.75,7.92]
[1759095350396,3.41206756,206.81,206.75,7.92]
[1759095350592,7.94,206.82,206.75,7.92]
[1759095350791,3.41112398,206.81,206.75,7.92]
[1759095351000,7.94,206.82,206.75,7.92]
[1759095351298,3.41100476,206.81,206.75,7.92]
[1759095351500,7.94,206.82,206.75,7.92]
[1759095351697,3.41035414,206.81,206.75,7.92]
[1759095351898,11.35008325,206.8,206.72,7.92]
[1759095352097,3.41019581,206.79,206.72,7.92]
[1759095352301,7.94,206.78,206.72,7.92]
[1759095355706,7.94,206.78,206.72,12.2719]
[1759095362015,7.94,206.78,206.72,7.92]
[1759095364607,3.41283017,206.77,206.69,11.9527]
[1759095364799,70.28753066,206.82,206.69,11.9527]
[1759095365002,3.41282294,206.81,206.69,11.9527]
[1759095365207,7.82,206.79,206.69,11.9527]
[1759095365507,7.82,206.77,206.69,11.9527]
[1759095365708,7.82,206.75,206.69,11.9527]
[1759095365905,7.82,206.75,206.69,7.6]
[1759095376813,7.82,206.75,206.7,7.84]
[1759095377015,7.7,206.77,206.7,7.84]
[1759095377216,3.39264136,206.76,206.7,7.84]
[1759095377417,7.7,206.77,206.7,7.84]
[1759095377616,3.39254964,206.76,206.69,4.3525]
[1759095377818,4.3508,206.78,206.69,4.3525]
[1759095378018,11.09255206,206.77,206.7,7.84]
[1759095378220,3.39255206,206.76,206.7,7.84]
[1759095378419,7.7,206.77,206.7,7.84]
[1759095378621,3.39304919,206.76,206.69,4.3525]
[1759095378821,7.7,206.77,206.7,7.84]
[1759095379018,3.39305,206.76,206.7,7.84]
[1759095379219,3.39358734,206.75,206.7,7.84]
[1759095379419,7.7,206.77,206.7,7.84]
[1759095379724,3.39413451,206.76,206.69,4.3525]
[1759095380029,11.09413451,206.75,206.7,7.84]
[1759095380213,7.7,206.77,206.7,7.84]
[1759095380416,7.7,206.75,206.7,7.84]
[1759095380618,7.7,206.77,206.69,12.1925]
[1759095380917,7.7,206.75,206.69,12.1925]
[1759095389031,7.7,206.75,206.69,4.3525]
[1759095389327,7.31,206.77,206.7,7.94]
[1759095389528,7.31,206.75,206.7,7.94]
[1759095389723,7.31,206.77,206.7,7.94]
[1759095389919,3.39611741,206.76,206.7,7.94]
[1759095390124,7.31,206.77,206.71,7.94]
[1759095390326,3.39631507,206.76,206.71,7.94]
[1759095390524,7.31,206.77,206.71,7.94]
[1759095390732,10.70635441,206.76,206.68,7.94]
[1759095391033,7.31,206.76,206.68,7.94]
[1759095391633,7.31,206.79,206.72,7.94]
[1759095391833,3.39650797,206.78,206.71,4.3521]
[1759095392130,3.39650797,206.77,206.71,4.3521]
[1759095392332,10.70650797,206.76,206.71,4.3521]
[1759095392526,7.31,206.76,206.71,4.3521]
[1759095392731,7.31,206.79,206.71,12.2921]
[1759095392931,7.31,206.77,206.71,12.2921]
[1759095393133,10.70705131,206.76,206.71,4.3521]
[1759095393334,7.31,206.76,206.71,4.3521]
[1759095393733,7.31,206.76,206.72,7.94]
[1759095393936,4.3504,206.8,206.71,4.3521]
[1759095394137,10.70845777,206.79,206.72,7.94]
[1759095394336,7.31,206.77,206.72,7.94]
[1759095394537,7.31,206.75,206.71,4.3521]
[1759095395035,7.31,206.75,206.72,7.94]
[1759095395229,7.31,206.75,206.71,4.3521]
[1759095395438,7.31,206.79,206.72,12.2918]
[1759095395638,3.39895418,206.78,206.72,12.2918]
[1759095395836,10.70895418,206.77,206.72,4.3518]
[1759095396137,3.39895418,206.76,206.72,4.3518]
[1759095396349,7.31,206.77,206.73,7.94]
[1759095396634,3.3998841,206.76,206.73,7.94]
[1759095396831,7.31,206.77,206.72,4.3518]
[1759095397032,3.39987929,206.76,206.73,7.94]
[1759095397228,7.31,206.77,206.73,7.94]
[1759095397433,3.40003409,206.76,206.72,4.3518]
[1759095397630,7.31,206.77,206.73,7.94]
[1759095397833,3.4000373,206.76,206.72,4.3518]
[1759095398034,7.31,206.77,206.72,4.3518]
[1759095398228,3.4000373,206.76,206.72,4.3518]
[1759095398435,7.31,206.8,206.73,7.94]
[1759095398635,7.31,206.78,206.73,7.94]
[1759095398836,7.31,206.76,206.73,7.94]
[1759095399336,7.31,206.76,206.72,4.3518]
[1759095399641,7.31,206.76,206.73,7.94]
[1759095399841,7.31,206.76,206.72,4.3518]
[1759095400143,7.31,206.8,206.73,7.94]
[1759095400441,7.31,206.78,206.73,7.94]
[1759095400632,3.400415,206.77,206.73,7.94]
[1759095400837,7.31,206.75,206.73,7.94]
[1759095401037,7.31,206.8,206.73,7.94]
[1759095401232,7.31,206.78,206.66,7.94]
[1759095401441,7.31,206.78,206.68,7.94]
[1759095401442,7.31,206.76,206.68,7.94]
[1759095401637,7.31,206.74,206.68,7.94]
[1759095402546,7.31,206.74,206.68,12.2929]
[1759095403544,4.351,206.77,206.68,12.2929]
[1759095403745,3.35207251,206.76,206.68,12.2929]
[1759095403946,7.31,206.74,206.68,12.2929]
[1759095404151,7.31,206.76,206.68,12.2929]
[1759095404450,7.31,206.74,206.68,12.2929]
[1759095408150,3.35250442,206.73,206.68,4.3529]
[1759095408350,7.31,206.76,206.69,7.94]
[1759095408553,7.31,206.74,206.69,7.94]